fUSD/lending_fUSD_20240505
["ID","MTS","AMOUNT","RATE_DAILY","PERIOD"]
[325430085,1714878632239,-2179.61867406,0.00010893,2]
[325430086,1714878632364,-1592.358,0.00010893,2]
[325430087,1714878632376,-318.64482262,0.00010893,2]
[325430099,1714878640313,-620.35999999,0.00010893,2]
[325430101,1714878640611,-600.63820745,0.00010893,2]
[325430102,1714878640624,-26703.27024767,0.00010893,2]
[325430103,1714878640634,-150.0,0.00010993,2]
[325430104,1714878640644,-720.0,0.00011393,2]
[325430105,1714878640654,-150.0,0.00011453,2]
[325430106,1714878640664,-250.0,0.00011513,2]
[325430107,1714878640674,-250.0,0.00011646,2]
[325430108,1714878640684,-194.0,0.00011804,2]
[325430109,1714878640694,-164.28,0.00011892,2]
[325430110,1714878640704,-164.28,0.0001197,2]
[325430111,1714878640714,-168.3,0.00012047,2]
[325430112,1714878640724,-499.99,0.00012047,2]
[325430113,1714878640734,-164.28,0.00012047,2]
[325430114,1714878640744,-210.0,0.00012092,2]
[325430115,1714878640753,-164.28,0.00012125,2]
[325430116,1714878640763,-164.28,0.00012202,2]
[325430117,1714878640773,-23900.0,0.00012259,2]
[325430118,1714878640782,-164.28,0.0001228,2]
[325430119,1714878640792,-164.28,0.00012357,2]
[325430120,1714878640802,-3426.14378131,0.00012366,2]
[325430121,1714878640814,-164.28,0.00012435,2]
[325430122,1714878640823,-933.0485,0.000125,2]
[325430123,1714878640833,-164.28,0.00012512,2]
[325430124,1714878640843,-784.63029872,0.00012521,2]
[325430125,1714878640853,-150.99,0.00012598,2]
[325430126,1714878640863,-470.79,0.00012598,2]
[325430127,1714878640873,-500.0,0.000126,2]
[325430128,1714878640883,-137271.7673,0.000126,2]
[325430129,1714878640892,-12186.703,0.000126,2]
[325430130,1714878640903,-100000.0,0.000126,2]
[325430131,1714878640912,-1796.202,0.000126,2]
[325430132,1714878640923,-155.0,0.00012698,2]
[325430133,1714878640933,-180.14035465,0.000127,2]
[325430134,1714878640944,-49470.46784052,0.000127,2]
[325430135,1714878640954,-216.00973,0.000127,2]
[325430136,1714878640964,-172.57,0.00012715,2]
[325430137,1714878640974,-720.0,0.00012817,2]
[325430138,1714878640984,-155.18,0.00012828,2]
[325430139,1714878640993,-155.18,0.00012833,2]
[325430140,1714878641003,-393.4,0.00012833,2]
[325430141,1714878641013,-155.18,0.00012839,2]
[325430142,1714878641023,-155.18,0.00012844,2]
[325430143,1714878641033,-155.18,0.00012849,2]
[325430144,1714878641043,-155.18,0.00012855,2]
[325430145,1714878641053,-155.18,0.0001286,2]
[325430146,1714878641065,-155.18,0.00012865,2]
[325430147,1714878641076,-155.18,0.00012871,2]
[325430148,1714878641086,-155.18,0.00012876,2]
[325430149,1714878641096,-155.18,0.00012881,2]
[325430150,1714878641105,-155.18,0.00012887,2]
[325430151,1714878641115,-155.18,0.00012892,2]
[325430152,1714878641126,-15522.84374417,0.000129,2]
[325430153,1714878641135,-155.88224783,0.000129,2]
[325430154,1714878641145,-1125.70537744,0.000129,2]
[325430155,1714878641156,-176.87,0.00012949,2]
[325430156,1714878641166,-372123.72638332,0.00013,2]
[325430157,1714878641175,-323.75400239,0.00013179,2]
[325430158,1714878641186,-194.0,0.00013279,2]
[325430159,1714878641196,-185.0,0.00013302,2]
[325430160,1714878641207,-419.2,0.00013425,2]
[325430161,1714878641217,-166.27,0.00013425,2]
[325430162,1714878641227,-500.0,0.00013699,2]
[325430163,1714878641237,-200.0,0.00013699,2]
[325430164,1714878641250,-720.0,0.00014241,2]
[325430165,1714878641260,-194.0,0.00014755,2]
[325430166,1714878641269,-700.0,0.000149,5]
[325430167,1714878641279,-20299.72150216,0.00015,2]
[325430168,1714878641289,-172.57,0.00015413,2]
[325430169,1714878641298,-720.0,0.00015665,2]
[325430170,1714878641308,-1125.70537738,0.00015905,2]
[325430171,1714878641319,-194.0,0.0001623,2]
[325430172,1714878641329,-165.3,0.00016351,2]
[325430173,1714878641339,-1400.0,0.000169,6]
[325430174,1714878641349,-2661.40051513,0.00017082,2]
[325430175,1714878641358,-720.0,0.00017089,2]
[325430176,1714878641368,-13052.62968276,0.0001709,2]
[325430177,1714878641378,-29024.555275,0.000171,2]
[325430178,1714878641387,-172.39377148,0.00017157,2]
[325430179,1714878641397,-250.30674262,0.00017157,2]
[325430180,1714878641406,-168.64352448,0.00017157,2]
[325430181,1714878641416,-184.67580972,0.00017157,2]
[325430182,1714878641426,-336.403637,0.00017244,2]
[325430183,1714878641435,-383.6588103,0.00017244,2]
[325430184,1714878641444,-1764.9247213,0.00017244,2]
[325430185,1714878641454,-36433.2203993,0.00017244,2]
[325430186,1714878641463,-2676.2307243,0.00017244,2]
[325430187,1714878641473,-13228.6006008,0.00017244,2]
[325430188,1714878641483,-9044.939872,0.00017244,2]
[325430189,1714878641492,-57274.7669519,0.00017244,2]
[325430190,1714878641502,-151.0,0.00017244,2]
[325430191,1714878641511,-151.0,0.00017244,2]
[325430192,1714878641521,-554.5102277,0.00017244,2]
[325430193,1714878641531,-151.0,0.00017244,2]
[325430194,1714878641541,-151.0,0.00017244,2]
[325430195,1714878641551,-157.068242,0.00017244,2]
[325430196,1714878641561,-509.56478731,0.00017256,2]
[325430197,1714878641573,-207.58542229,0.00017256,2]
[325430198,1714878641583,-5648.2797368,0.00017256,2]
[325430199,1714878641593,-592482.29403575,0.00017257,2]
[325430200,1714878641603,-167.58951255,0.00017257,2]
[325430201,1714878641614,-2000.0,0.00017257,2]
[325430202,1714878641624,-200.0,0.00017257,2]
[325430203,1714878641634,-151.0,0.00017257,2]
[325430204,1714878641644,-151.0,0.00017257,2]
[325430205,1714878641654,-5276.5304034,0.00017258,2]
[325430206,1714878641664,-216.00973,0.000177,2]
[325430207,1714878641674,-194.0,0.00017706,2]
[325430208,1714878641684,-276.29461022,0.0001788,2]
[325430209,1714878641694,-276.29461017,0.0001788,2]
[325430210,1714878641704,-276.29461017,0.0001798,2]
[325430211,1714878641713,-632.0,0.00018,2]
[325430212,1714878641723,-450.0,0.00018,3]
[325430213,1714878641733,-2776.0,0.000181,2]
[325430214,1714878641743,-500.0,0.000185,2]
[325430215,1714878641753,-250.30674257,0.0001905,2]
[325430216,1714878641763,-3874.59194458,0.000192,2]
[325430217,1714878641772,-1125.70537738,0.00019311,2]
[325430218,1714878641856,-152.45879226,0.000199,2]
[325430219,1714878641866,-1545.16348,0.0002,2]
[325430220,1714878641876,-5187.98124342,0.0002,2]
[325430221,1714878641886,-358.34672107,0.0002,2]
[325430222,1714878641896,-445.20209732,0.0002,2]
[325430223,1714878641906,-1293.03712811,0.0002,2]
[325430224,1714878641915,-396.06643826,0.0002,2]
[325430225,1714878641925,-500.0,0.0002,3]
[325430226,1714878641935,-350.0,0.0002,2]
[325430227,1714878641945,-276.29461017,0.0002072,2]
[325430228,1714878641954,-155.0,0.000209,2]
[325430229,1714878641964,-250.30674257,0.00020943,2]
[325430230,1714878641974,-152.45879223,0.00021596,2]
[325430231,1714878641984,-151.39,0.00021644,2]
[325430232,1714878641993,-177.98,0.00021644,2]
[325430233,1714878642003,-153.24,0.00021644,2]
[325430234,1714878642012,-192.89,0.00021644,2]
[325430235,1714878642023,-2000.0,0.00021918,2]
[325430236,1714878642032,-250.0,0.00021918,2]
[325430237,1714878642042,-168.64352445,0.00021952,2]
[325430238,1714878642052,-550.0,0.00022,3]
[325430239,1714878642061,-216.00973,0.000227,2]
[325430240,1714878642071,-1125.70537738,0.00022716,2]
[325430241,1714878642081,-250.30674257,0.00022837,2]
[325430242,1714878642091,-2100.0,0.000229,8]
[325430243,1714878642101,-13302.03669356,0.00023,2]
[325430244,1714878642111,-555731.193657,0.00023,2]
[325430245,1714878642122,-219.88,0.00023,2]
[325430246,1714878642131,-151.0,0.00023,7]
[325430247,1714878642141,-206.166562,0.00023,7]
[325430248,1714878642152,-449.24171969,0.000234,2]
[325430249,1714878642162,-276.29461017,0.0002346,2]
[325430250,1714878642172,-180.0,0.0002423,2]
[325430251,1714878642181,-1000.0,0.000246,2]
[325430252,1714878642191,-893.0,0.000246,2]
[325430253,1714878642200,-352.0,0.000246,2]
[325430254,1714878642210,-666.0,0.00024657,2]
[325430255,1714878642220,-419.2,0.00024658,2]
[325430256,1714878642230,-166.27,0.00024658,2]
[325430257,1714878642239,-250.30674257,0.0002473,2]
[325430258,1714878642253,-6276.57401691,0.00025,2]
[325430259,1714878642264,-155.41643281,0.00025,2]
[325430260,1714878642273,-394.06833976,0.00025,2]
[325430261,1714878642283,-547.52629801,0.00025008,2]
[325430262,1714878642294,-19699.23956688,0.00025008,2]
[325430263,1714878642304,-1041.53180245,0.00025008,2]
[325430264,1714878642315,-1037.30256325,0.00025008,2]
[325430265,1714878642324,-1013.0,0.000259,2]
[325430266,1714878642337,-152.45879223,0.00026035,2]
[325430267,1714878642346,-1125.70537738,0.00026122,2]
[325430268,1714878642356,-276.29461017,0.000262,2]
[325430269,1714878642365,-200.0,0.00026225,2]
[325430270,1714878642376,-250.30674257,0.00026623,2]
[325430271,1714878642386,-168.64352445,0.00026748,2]
[325430272,1714878642395,-219.88,0.000268,2]
[325430273,1714878642405,-235.22915065,0.00027,120]
[325430274,1714878642414,-3953.94652419,0.00027,2]
[325430275,1714878642424,-216.45,0.00027068,15]
[325430276,1714878642433,-150.0,0.00027358,2]
[325430277,1714878642443,-152.577,0.00027358,2]
[325430278,1714878642452,-159.461,0.00027358,2]
[325430279,1714878642461,-2307.322,0.00027358,2]
[325430280,1714878642471,-1400.507,0.00027358,2]
[325430281,1714878642481,-972.781,0.00027358,2]
[325430282,1714878642490,-463.803,0.00027358,2]
[325430283,1714878642499,-1261.744,0.00027358,2]
[325430284,1714878642509,-1233.742,0.00027358,2]
[325430285,1714878642519,-542.0,0.00027358,2]
[325430286,1714878642528,-1861.0,0.00027358,2]
[325430287,1714878642538,-435.857,0.00027358,2]
[325430288,1714878642547,-610.0,0.00027358,2]
[325430289,1714878642557,-797.0,0.00027358,2]
[325430290,1714878642567,-150.848,0.00027358,2]
[325430291,1714878642577,-422.776,0.00027358,2]
[325430292,1714878642586,-150.944,0.00027358,2]
[325430293,1714878642595,-1481.855,0.00027358,2]
[325430294,1714878642604,-2450.0,0.00027358,2]
[325430295,1714878642614,-1144.085,0.00027358,2]
[325430296,1714878642624,-444.487,0.00027358,2]
[325430297,1714878642633,-1648.529,0.00027358,2]
[325430298,1714878642643,-215.0,0.00027358,2]
[325430299,1714878642652,-3145.205,0.00027358,2]
[325430300,1714878642662,-5754.898,0.00027358,2]
[325430301,1714878642672,-291.02,0.00027358,2]
[325430302,1714878642681,-5916.42,0.00027358,2]
[325430303,1714878642691,-2299.098,0.00027358,2]
[325430304,1714878642701,-37775.0,0.00027358,2]
[325430305,1714878642710,-151.0,0.00027358,7]
[325430306,1714878642720,-668.67422219,0.00027397,2]
[325430307,1714878642729,-151.1,0.00027397,2]
[325430308,1714878642739,-216.00974,0.000277,2]
[325430309,1714878642749,-741.86569669,0.000279,2]
[325430310,1714878642759,-741.86569669,0.000279,2]
[325430311,1714878642769,-741.86569669,0.000279,2]
[325430312,1714878642779,-741.86569669,0.000279,2]
[325430313,1714878642788,-741.86569669,0.000279,2]
[325430314,1714878642798,-741.86569669,0.000279,2]
[325430315,1714878642808,-741.86569669,0.000279,2]
[325430316,1714878642818,-741.86569669,0.000279,2]
[325430317,1714878642827,-741.86569669,0.000279,2]
[325430318,1714878642836,-741.86569669,0.000279,2]
[325430319,1714878642846,-151.0,0.00028203,7]
[325430320,1714878642856,-24018.05,0.00028203,2]
[325430321,1714878642866,-2234.09,0.00028203,2]
[325430322,1714878642875,-11280.29,0.00028203,2]
[325430323,1714878642885,-546.98338678,0.00028493,2]
[325430324,1714878642894,-250.30674257,0.00028516,2]
[325430325,1714878642903,-276.29461017,0.0002894,2]
[325430326,1714878642913,-219.88,0.00029,2]
[325430327,1714878642923,-1465.59822651,0.00029089,2]
[325430328,1714878642932,-151.39,0.00029333,2]
[325430329,1714878642942,-1125.70537738,0.00029527,2]
[325430330,1714878642952,-1000.0,0.000298,2]
[325430331,1714878642961,-492.63231091,0.00029999,2]
[325430332,1714878642971,-500.0,0.00029999,2]
[325430333,1714878642980,-488.59278459,0.00029999,2]
[325430334,1714878642990,-4050.46320977,0.0003,2]
[325430335,1714878642999,-2567.58260191,0.0003,4]
[325430338,1714878643009,-971.0,0.00030358,2]
[325430340,1714878643018,-462.0,0.00030358,2]
[325430341,1714878643027,-1259.0,0.00030358,2]
[325430342,1714878643037,-1227.0,0.00030358,2]
[325430343,1714878643046,-394.013,0.00030358,2]
[325430345,1714878643056,-421.0,0.00030358,2]
[325430346,1714878643065,-150.0,0.00030358,2]
[325430347,1714878643075,-1730.394,0.00030358,2]
[325430348,1714878643084,-444.0,0.00030358,2]
[325430349,1714878643094,-215.0,0.00030358,2]
[325430350,1714878643103,-5741.0,0.00030358,2]
[325430351,1714878643113,-288.0,0.00030358,2]
[325430352,1714878643123,-5903.0,0.00030358,2]
[325430353,1714878643132,-2293.0,0.00030358,2]
[325430354,1714878643143,-22243.804,0.00030358,2]
[325430355,1714878643152,-250.30674257,0.00030409,2]
[325430356,1714878643162,-152.45879223,0.00030474,2]
[325430357,1714878643171,-221.37491933,0.00030728,90]
[325430358,1714878643181,-155.03576354,0.00030728,30]
[325430359,1714878643190,-198.17819466,0.00030728,30]
[325430360,1714878643200,-4048.60367196,0.00030728,120]
[325430361,1714878643209,-200.0,0.00030728,30]
[325430362,1714878643219,-244.961306,0.00030728,30]
[325430363,1714878643228,-150.0,0.00030728,10]
[325430364,1714878643238,-216.45,0.00030804,15]
[325430365,1714878643248,-151.1,0.00030822,2]
[325430366,1714878643263,-1000.0,0.00031,2]
[325430367,1714878643272,-253.9,0.00031041,2]
[325430368,1714878643281,-151.03,0.00031041,2]
[325430369,1714878643291,-301.83,0.00031041,2]
[325430371,1714878643301,-151.28,0.00031041,2]
[325430373,1714878643311,-419.66,0.00031041,2]
[325430375,1714878643322,-305.96,0.00031041,2]
[325430377,1714878643333,-256.25,0.00031041,2]
[325430378,1714878643343,-150.0,0.00031041,2]
[325430379,1714878643352,-522.7,0.00031041,2]
[325430380,1714878643362,-419.66,0.00031041,2]
[325430381,1714878643372,-150.0,0.00031041,2]
[325430382,1714878643381,-163.05,0.00031041,2]
[325430383,1714878643391,-522.7,0.00031041,2]
[325430384,1714878643400,-150.0,0.00031041,2]
[325430385,1714878643410,-150.0,0.00031041,2]
[325430386,1714878643420,-522.7,0.00031041,2]
[325430387,1714878643429,-150.0,0.00031041,2]
[325430388,1714878643439,-419.66,0.00031041,2]
[325430389,1714878643448,-150.0,0.00031041,2]
[325430390,1714878643458,-163.05,0.00031041,2]
[325430391,1714878643467,-150.0,0.00031041,2]
[325430392,1714878643477,-350.77,0.00031041,2]
[325430393,1714878643487,-350.89,0.00031041,2]
[325430394,1714878643496,-163.05,0.00031041,2]
[325430395,1714878643506,-522.7,0.00031041,2]
[325430396,1714878643516,-419.66,0.00031041,2]
[325430397,1714878643525,-150.0,0.00031041,2]
[325430398,1714878643534,-150.0,0.00031041,2]
[325430399,1714878643544,-150.0,0.00031041,2]
[325430400,1714878643553,-350.89,0.00031041,2]
[325430401,1714878643564,-1009.0,0.000311,2]
[325430402,1714878643574,-151.22158807,0.0003111,2]
[325430403,1714878643583,-153.24,0.00031256,2]
[325430404,1714878643592,-161.66396805,0.00031302,7]
[325430405,1714878643602,-168.64352445,0.00031543,3]
[325430406,1714878643611,-219.88,0.000318,2]
[325430407,1714878643621,-151.0,0.00031863,7]
[325430408,1714878643631,-163.05,0.00031863,2]
[325430409,1714878643640,-150.0,0.00031863,2]
[325430410,1714878643649,-419.66,0.00031863,2]
[325430411,1714878643659,-163.05,0.00031863,2]
[325430412,1714878643668,-303.6,0.00031863,2]
[325430413,1714878643677,-150.0,0.00031863,2]
[325430414,1714878643687,-350.89,0.00031863,2]
[325430415,1714878643696,-419.66,0.00031863,2]
[325430416,1714878643706,-989.88,0.00031863,2]
[325430417,1714878643716,-163.05,0.00031863,2]
[325430418,1714878643725,-150.0,0.00031863,2]
[325430419,1714878643735,-350.89,0.00031863,2]
[325430420,1714878643746,-522.7,0.00031863,2]
[325430421,1714878643755,-419.66,0.00031863,2]
[325430422,1714878643765,-163.05,0.00031863,2]
[325430423,1714878643775,-150.0,0.00031863,2]
[325430424,1714878643784,-350.89,0.00031863,2]
[325430425,1714878643794,-150.0,0.00031863,2]
[325430426,1714878643803,-522.7,0.00031863,2]
[325430427,1714878643815,-419.66,0.00031863,2]
[325430428,1714878643825,-166.46,0.00031863,2]
[325430429,1714878643835,-150.0,0.00031863,2]
[325430430,1714878643844,-152.79,0.00031863,2]
[325430431,1714878643854,-350.89,0.00031863,2]
[325430432,1714878643864,-428.5,0.00031863,2]
[325430433,1714878643873,-522.7,0.00031863,2]
[325430434,1714878643883,-358.26,0.00031863,2]
[325430435,1714878643893,-150.0,0.00031863,2]
[325430436,1714878643903,-150.0,0.00031863,2]
[325430437,1714878643913,-163.05,0.00031863,2]
[325430438,1714878643922,-419.66,0.00031863,2]
[325430439,1714878643931,-533.79,0.00031863,2]
[325430440,1714878643941,-350.89,0.00031863,2]
[325430441,1714878643950,-152.48,0.00031863,2]
[325430442,1714878643960,-150.0,0.00031863,2]
[325430443,1714878643970,-150.0,0.00031863,2]
[325430444,1714878643979,-350.89,0.00031863,2]
[325430445,1714878643988,-416.68,0.00031863,2]
[325430446,1714878643998,-522.7,0.00031863,2]
[325430447,1714878644008,-522.7,0.00031863,2]
[325430448,1714878644018,-350.89,0.00031863,2]
[325430449,1714878644027,-522.7,0.00031863,2]
[325430450,1714878644037,-350.89,0.00031863,2]
[325430451,1714878644046,-150.0,0.00031863,2]
[325430452,1714878644056,-150.0,0.00031863,2]
[325430453,1714878644066,-331.19,0.00031863,2]
[325430454,1714878644075,-360.4,0.00031863,2]
[325430455,1714878644085,-350.89,0.00031863,2]
[325430457,1714878644095,-350.89,0.00031863,2]
[325430459,1714878644105,-350.89,0.00031863,2]
[325430461,1714878644115,-350.89,0.00031863,2]
[325430463,1714878644124,-350.89,0.00031863,2]
[325430465,1714878644134,-329.2,0.00031863,2]
[325430466,1714878644143,-176.70396604,0.0003189,7]
[325430467,1714878644153,-157.23407899,0.00031951,7]
[325430468,1714878644163,-500.0,0.00032,120]
[325430469,1714878644173,-159.008618,0.00032049,7]
[325430470,1714878644182,-161.66396805,0.00032051,7]
[325430471,1714878644192,-788.93,0.00032192,2]
[325430472,1714878644202,-159.008618,0.00032212,7]
[325430473,1714878644211,-1018.0,0.000323,7]
[325430474,1714878644221,-250.30674257,0.00032302,4]
[325430475,1714878644231,-159.008618,0.00032412,7]
[325430476,1714878644240,-1823.17,0.00032466,2]
[325430477,1714878644253,-500.0,0.000325,120]
[325430478,1714878644262,-157.23407899,0.00032596,7]
[325430479,1714878644271,-828.56,0.00032603,2]
[325430480,1714878644281,-216.00973,0.000327,2]
[325430481,1714878644291,-1125.70537738,0.00032933,2]
[325430482,1714878644300,-500.0,0.00033,120]
[325430483,1714878644309,-150.0,0.00033,2]
[325430484,1714878644320,-300.0,0.00033151,2]
[325430485,1714878644329,-159.008618,0.00033166,7]
[325430486,1714878644340,-150.0,0.00033232,120]
[325430487,1714878644350,-154.8233056,0.00033281,7]
[325430488,1714878644359,-161.66396805,0.0003348,7]
[325430489,1714878644369,-500.0,0.000335,120]
[325430490,1714878644378,-150.0,0.00033683,2]
[325430491,1714878644388,-516.06713626,0.00033835,120]
[325430492,1714878644398,-1172.94497081,0.00034,120]
[325430493,1714878644408,-500.0,0.00034,120]
[325430494,1714878644417,-159.008618,0.00034073,7]
[325430495,1714878644426,-159.49207729,0.00034087,7]
[325430496,1714878644435,-155.61163013,0.00034099,7]
[325430497,1714878644445,-250.30674257,0.00034196,6]
[325430498,1714878644454,-151.1,0.00034247,2]
[325430499,1714878644464,-157.23407899,0.00034258,7]
[325430500,1714878644473,-656.49,0.00034466,2]
[325430501,1714878644482,-163.050511,0.00034498,30]
[325430502,1714878644491,-500.0,0.000345,120]
[325430503,1714878644500,-436.46,0.00034521,2]
[325430504,1714878644510,-216.45,0.0003454,15]
[325430505,1714878644520,-150.0,0.00034548,10]
[325430506,1714878644530,-163.050511,0.00034798,32]
[325430507,1714878644540,-161.66396805,0.00034888,7]
[325430508,1714878644549,-155.54389201,0.00034902,4]
[325430509,1714878644558,-152.45879223,0.00034913,2]
[325430510,1714878644569,-29335.64204395,0.00035,4]
[325430511,1714878644579,-494.74435115,0.00035,120]
[325430512,1714878644588,-156.15409233,0.00035,15]
[325430513,1714878644597,-1316.0460041,0.00035,30]
[325430514,1714878644606,-500.0,0.00035,120]
[325430515,1714878644616,-17557.41452401,0.00035066,2]
[325430516,1714878644624,-197.53518,0.00035066,7]
[325430517,1714878644634,-163.050511,0.00035198,34]
[325430518,1714878644643,-155.69161,0.000352,8]
[325430519,1714878644651,-200.0,0.0003533,10]
[325430520,1714878644661,-288.976024,0.0003533,10]
[325430521,1714878644670,-500.0,0.0003533,10]
[325430522,1714878644680,-200.0,0.0003533,10]
[325430523,1714878644689,-200.0,0.00035331,10]
[325430524,1714878644699,-500.0,0.00035331,10]
[325430525,1714878644707,-200.0,0.00035331,10]
[325430526,1714878644716,-200.0,0.00035331,10]
[325430527,1714878644726,-200.0,0.00035331,10]
[325430528,1714878644735,-500.0,0.00035331,10]
[325430529,1714878644744,-500.0,0.00035331,10]
[325430530,1714878644752,-200.0,0.00035331,10]
[325430531,1714878644761,-200.0,0.00035331,10]
[325430532,1714878644770,-155.28685569,0.00035369,7]
[325430533,1714878644779,-163.050511,0.00035498,36]
[325430534,1714878644788,-500.0,0.000355,120]
[325430535,1714878644796,-3996.5600609,0.00035516,2]
[325430536,1714878644806,-1272.98108694,0.00035516,2]
[325430537,1714878644816,-1897.0,0.000356,2]
[325430538,1714878644825,-500.59,0.000356,9]
[325430539,1714878644835,-2900.0,0.000356,12]
[325430540,1714878644845,-160.0,0.000356,9]
[325430541,1714878644854,-1112.73992509,0.00035614,4]
[325430542,1714878644864,-1927954.30103411,0.00035614,5]
[325430543,1714878644874,-1611.6892274,0.00035616,5]
[325430544,1714878644883,-290.20568757,0.00035616,4]
[325430545,1714878644892,-500.0,0.00035616,8]
[325430546,1714878644902,-500.0,0.00035616,8]
[325430547,1714878644912,-500.0,0.00035616,8]
[325430548,1714878644921,-500.0,0.00035616,8]
[325430549,1714878644932,-449.72582585,0.00035616,8]
[325430550,1714878644943,-500.0,0.00035616,8]
[325430551,1714878644959,-359.96648921,0.00035616,8]
[325430552,1714878644968,-500.0,0.00035616,8]
[325430553,1714878644978,-185.09007192,0.00035616,8]
[325430554,1714878644987,-366.65602257,0.00035616,8]
[325430555,1714878644997,-162.83103143,0.00035616,8]
[325430556,1714878645006,-500.0,0.00035616,8]
[325430557,1714878645016,-500.0,0.00035616,8]
[325430558,1714878645026,-925.28,0.00035616,8]
[325430559,1714878645035,-500.0,0.00035616,8]
[325430560,1714878645044,-500.0,0.00035616,8]
[325430561,1714878645054,-1414.6,0.00035616,8]
[325430562,1714878645064,-752.47,0.00035616,8]
[325430563,1714878645074,-583.82966972,0.00035616,8]
[325430564,1714878645083,-1171.2,0.00035616,8]
[325430565,1714878645093,-1400.29,0.00035616,8]
[325430566,1714878645102,-781.2,0.00035616,8]
[325430567,1714878645112,-817.38,0.00035616,8]
[325430568,1714878645121,-602.22,0.00035616,8]
[325430569,1714878645130,-500.0,0.00035616,8]
[325430570,1714878645139,-500.0,0.00035616,8]
[325430571,1714878645149,-1165.9,0.00035616,8]
[325430572,1714878645159,-500.0,0.00035616,8]
[325430573,1714878645168,-1121.47,0.00035616,8]
[325430574,1714878645178,-524.61,0.00035616,8]
[325430575,1714878645188,-158.58006556,0.00035616,8]
[325430576,1714878645197,-615.2,0.00035616,8]
[325430577,1714878645206,-559.38,0.00035616,8]
[325430578,1714878645215,-500.0,0.00035616,8]
[325430579,1714878645225,-751.48,0.00035616,8]
[325430580,1714878645235,-1568.53,0.00035616,8]
[325430581,1714878645244,-500.0,0.00035616,8]
[325430582,1714878645256,-563.83,0.00035616,8]
[325430583,1714878645266,-500.0,0.00035616,8]
[325430584,1714878645276,-500.0,0.00035616,8]
[325430585,1714878645286,-500.0,0.00035616,8]
[325430586,1714878645296,-500.0,0.00035616,8]
[325430587,1714878645305,-500.0,0.00035616,8]
[325430588,1714878645315,-547.74,0.00035616,8]
[325430589,1714878645326,-500.0,0.00035616,8]
[325430590,1714878645335,-1183.42,0.00035616,8]
[325430591,1714878645344,-500.0,0.00035616,8]
[325430592,1714878645354,-1278.57,0.00035616,8]
[325430593,1714878645363,-500.0,0.00035616,7]
[325430594,1714878645372,-1345.04,0.00035616,8]
[325430595,1714878645381,-500.0,0.00035616,8]
[325430596,1714878645390,-500.0,0.00035616,8]
[325430597,1714878645400,-500.0,0.00035616,8]
[325430598,1714878645409,-1015.54,0.00035616,8]
[325430599,1714878645419,-1768.77,0.00035616,8]
[325430600,1714878645429,-500.0,0.00035616,8]
[325430601,1714878645438,-699.67,0.00035616,8]
[325430602,1714878645447,-557.54,0.00035616,8]
[325430603,1714878645456,-500.0,0.00035616,8]
[325430604,1714878645466,-500.0,0.00035616,8]
[325430605,1714878645475,-500.0,0.00035616,8]
[325430606,1714878645485,-500.0,0.00035616,8]
[325430607,1714878645494,-960.56,0.00035616,8]
[325430608,1714878645503,-977.37,0.00035616,8]
[325430609,1714878645513,-500.0,0.00035616,8]